Cogmind - Beta 15 @@@ ROGUE MODE // 2025.09.13 @ 15:39:32 Player: TapeIsSticky Result: Heading to fleet! Performance ------------- Evolutions (9) 4500 Regions Visited (26) 5200 Robots Destroyed (270) 1350 Value Destroyed (15153) 15153 Prototype IDs (79) 1580 Alien Tech Used (9) 1800 Bonus (13558) 13558 TOTAL SCORE: 43141 Bonus ------- High Alert Combat Kills 1710 Follower Combat Kills 1578 Network Hubs Disabled 200 Registered with UFD 300 Met Zhirov 300 Met R17 at Cetus 500 Used Core Reset Matrix 3000 Met R17 at Research 2000 Scanned by Researcher 500 Destroyed MAIN.C Guards 500 Win 3000 Friendly Fire -30 Cogmind --------- Core Integrity 408/1600 Matter 245/300 Energy 98/100 System Corruption 0% +Membrane Temperature Cool (0) +ITN Movement Core (50) Location To Fleet Rendezvous Parts ------- > --- POWER (4) -------- (None) > --- PROPULSION (6) --- (None) > --- UTILITY (12) ----- (None) > --- WEAPON (4) ------- (None) > --- INVENTORY (5) ---- Reinforced Quantum Reactor Heavy Siege Treads Thermal Barrier Subatomic Replicator Peak State ------------ > --- POWER ------------ Quantum Reactor Quantum Reactor Zero-point Reactor Zero-point Reactor > --- PROPULSION ------- Experimental Biometal Heavy Treads High-density Centrium Heavy Treads High-density Centrium Heavy Treads > --- UTILITY ---------- 2N-1CE's Frost Array Huge Storage Unit Surveybot 17 Chip Advanced Targeting Computer Experimental Targeting Computer Core Analyzer Advanced Transmission Jammer Heavy Regenerative Plating Graphene Brace AEGIS Remote Shield Long-range Tractor Beam > --- WEAPON ----------- Gamma Bomb Array Ragnarok Missile Launcher Core Stripper > --- INVENTORY -------- Reinforced Quantum Reactor Improved Quantum Reactor Heavy Siege Treads Experimental Energy Well Experimental Energy Well Experimental Energy Well Experimental Energy Well Improved Matter Compressor Long-range Terrain Scanner Improved Kinecellerator Thermal Barrier Thermal Barrier Transdimensional Reconstructor Subatomic Replicator Compact HERF Cannon Enhanced Hardcell Cannon Enhanced Hardcell Cannon Enhanced Hardcell Cannon Compact Linear Accelerator Graviton Cannon Perforator Hellfire Missile Launcher [Rating: 243] Favorites ----------- Power Quantum Reactor Engine Angular Momentum Engine Power Core Neutrino Core Reactor Quantum Reactor Propulsion Improved Medium Treads Treads Improved Medium Treads Wheel Overtuned Huge Scrapsphere Utility Huge Storage Unit Device Scrap Suit Storage Huge Storage Unit Processor Advanced Signal Interpreter Hackware Improved Hacking Suite Protection Centrium Medium Armor Plating Weapon Assault Rifle Energy Gun Overtuned Quantum Rifle Energy Cannon Heavy Plasma Cannon Ballistic Gun Assault Rifle Ballistic Cannon Hypervelocity Mass Driver Launcher Gamma Bomb Array Special Weapon CPS Tube Impact Weapon Core Stripper Slashing Weapon Sigix Broadsword Build | -11 -10 -10 -8 -8 -6 -6 -6 -6 -5 -5 -5 -5 -5 -4 -4 -4 -4 -4 -4 -3 -3 -2 -2 -2 -1 -1 ------- Run | Yrd Mat Sub Rec Scr Fac Low Low Zio Pro Fac Upp Upp Zhi Pro Fac Ext Cet Arc Hub Res Tes Res Qua Sec Acc Com Slots Evolved 18 | . . . . . 8 . . . . 2 . . . . 2 . . . . 2 . 2 . . 2 . Power 3 | . . . . . 1 . . . . . . . . . 1 . . . . . . . . . 1 . Propulsion 3 | . . . . . 2 . . . . . . . . . . . . . . 1 . . . . . . Utility 10 | . . . . . 4 . . . . 2 . . . . 1 . . . . 1 . 2 . . . . Weapon 2 | . . . . . 1 . . . . . . . . . . . . . . . . . . . 1 . Parts Attached 191 | 7 9 1 5 9 19 5 1 . . 11 6 . 3 3 15 6 14 3 2 10 4 8 5 8 20 17 Power 34 | 1 1 . 1 1 3 . . . . . 2 . 1 . . 3 3 . . 2 . 3 1 2 7 3 Engine 7 | 1 1 . 1 1 3 . . . . . . . . . . . . . . . . . . . . . Core 2 | . . . . . . . . . . . 1 . . . . 1 . . . . . . . . . . Reactor 25 | . . . . . . . . . . . 1 . 1 . . 2 3 . . 2 . 3 1 2 7 3 Propulsion 32 | 2 1 1 2 3 3 . 1 . . 1 . . . 1 3 1 3 . . 2 1 . . 2 3 2 Treads 30 | 2 . 1 2 3 2 . 1 . . 1 . . . 1 3 1 3 . . 2 1 . . 2 3 2 Leg . | . . . . . . . . . . . . . . . . . . . . . . . . . . . Wheel 2 | . 1 . . . 1 . . . . . . . . . . . . . . . . . . . . . Hover . | . . . . . . . . . . . . . . . . . . . . . . . . . . . Flight . | . . . . . . . . . . . . . . . . . . . . . . . . . . . Utility 71 | 2 3 . 2 1 7 2 . . . 7 3 . 2 . 4 2 6 1 2 5 1 2 3 3 6 7 Device 40 | 1 . . . . 4 1 . . . 3 2 . . . 4 2 3 1 2 2 1 2 . 1 5 6 Storage 6 | 1 3 . 1 . . . . . . . . . 1 . . . . . . . . . . . . . Processor 13 | . . . . 1 2 . . . . 1 1 . . . . . . . . 3 . . 2 1 1 1 Hackware 2 | . . . . . 1 . . . . 1 . . . . . . . . . . . . . . . . Protection 10 | . . . 1 . . 1 . . . 2 . . 1 . . . 3 . . . . . 1 1 . . Artifact . | . . . . . . . . . . . . . . . . . . . . . . . . . . . Weapon 54 | 2 4 . . 4 6 3 . . . 3 1 . . 2 8 . 2 2 . 1 2 3 1 1 4 5 Energy Gun 4 | 1 1 . . . . . . . . 1 . . . . 1 . . . . . . . . . . . Energy Cannon 10 | . . . . . 2 . . . . . 1 . . 1 2 . . . . . 1 2 . . . 1 Ballistic Gun 16 | 1 1 . . 4 2 2 . . . . . . . 1 1 . . 2 . 1 1 . . . . . Ballistic Cannon 12 | . . . . . 1 . . . . 1 . . . . 4 . . . . . . . . . 4 2 Launcher 8 | . 2 . . . 1 1 . . . 1 . . . . . . . . . . . 1 . . . 2 Special Weapon 2 | . . . . . . . . . . . . . . . . . 2 . . . . . . . . . Impact Weapon 1 | . . . . . . . . . . . . . . . . . . . . . . . . 1 . . Slashing Weapon 1 | . . . . . . . . . . . . . . . . . . . . . . . 1 . . . Piercing Weapon . | . . . . . . . . . . . . . . . . . . . . . . . . . . . Special Melee Weapon . | . . . . . . . . . . . . . . . . . . . . . . . . . . . Unidentified Prototypes 16 | . . . . . . . 1 . . 1 1 . 4 . . . 2 1 . . . . 1 . . 5 Corrupted Parts 1 | . . . . . . . . . . . . . . 1 . . . . . . . . . . . . System Corruption 9 | . . . . . . . . . . . . . . 9 . . . . . . . . . . . . Parts Lost 39 | . . 3 . . . . . . . 1 . . . 1 1 1 1 . . . 2 . 2 1 1 25 Power 8 | . . . . . . . . . . . . . . . . 1 . . . . . . . . 1 6 Propulsion 7 | . . 1 . . . . . . . . . . . 1 1 . . . . . 1 . . . . 3 Utility 14 | . . . . . . . . . . . . . . . . . 1 . . . 1 . 2 1 . 9 Weapon 10 | . . 2 . . . . . . . 1 . . . . . . . . . . . . . . . 7 Highest Loss Streak 17 | . . 3 . . . . . . . 1 . . . 1 1 1 1 . . . 2 . 2 1 1 17 To Critical Strikes 3 | . . . . . . . . . . . . . . . . 1 . . . . 2 . . . . . Average Backups 21 | 2 12 13 21 22 22 23 23 23 24 23 24 25 24 24 24 23 21 21 21 22 23 23 22 21 21 21 Power 1 | . 1 2 2 2 1 1 1 1 1 1 1 1 1 1 . . . 1 1 1 1 2 1 1 1 1 Propulsion 4 | . 3 3 8 7 6 6 5 5 5 5 5 5 5 4 3 3 2 2 2 . . . . 1 1 1 Utility 9 | . 3 5 7 7 8 9 10 10 10 8 10 11 12 12 12 12 12 11 11 13 13 11 11 9 8 8 Weapon 6 | . 3 3 3 4 7 7 7 7 8 8 6 6 5 6 6 5 5 5 6 6 7 8 7 8 8 8 Tool/Special . | . . . . . . . . . . . . . . . . . . . . . . . . . . . Unused Backups 66 | 1 1 . . 16 13 1 . . . 2 1 1 2 . 2 . 3 . 2 2 4 1 3 1 2 8 Power 2 | . . . . . 1 . . . . . . . . . . . . . . . . 1 . . . . Propulsion 16 | 1 1 . . 5 5 . . . . . . . . . . . 3 . . . 1 . . . . . Utility 25 | . . . . 6 3 1 . . . . 1 . 1 . . . . . 2 . 2 . 1 1 1 6 Weapon 19 | . . . . 4 4 . . . . 2 . 1 . . 2 . . . . 2 1 . 2 . 1 . Tool/Special 4 | . . . . 1 . . . . . . . . 1 . . . . . . . . . . . . 2 Average Slot Usage (%) 89 | . 99 99 100 95 85 85 86 86 87 87 88 88 75 87 89 89 85 84 85 80 80 82 80 74 79 78 Engine 7 | . 14 14 14 13 12 13 12 12 12 11 3 . . . . . . . . . . . . . . . Reactor 4 | . . . . . . . . . . . 1 5 8 11 10 10 15 15 15 13 13 12 12 12 15 14 Treads 18 | . 25 27 28 28 13 13 17 18 18 16 16 16 16 15 15 15 11 10 10 12 13 12 12 11 11 10 Wheel 2 | . 2 . . . 5 6 6 6 6 5 5 5 5 5 5 5 5 5 5 . . . . . . . Device 13 | . 14 14 . . 19 19 18 18 18 19 17 16 15 16 23 24 23 24 23 18 18 24 22 15 18 17 Storage 8 | . 14 14 14 13 6 6 6 6 6 5 5 5 5 5 5 5 5 5 5 4 4 4 4 4 3 3 Processor 6 | . . . . 3 6 6 6 6 6 6 9 11 11 11 10 5 5 5 5 12 13 12 13 16 15 16 Protection 4 | . . . 14 7 . . . . . 3 5 5 5 5 1 5 5 5 6 4 4 4 4 4 3 2 Energy Cannon 2 | . . . . . 5 4 5 5 6 4 4 5 2 5 3 . 1 4 5 8 4 7 5 3 . . Ballistic Gun 14 | . 25 25 28 27 13 14 12 11 12 11 11 11 . 11 3 . . 2 5 . 7 4 1 . . . Ballistic Cannon 1 | . . . . . . . . . . . . . . . 7 14 11 7 5 . . . . . 6 2 Peak Build Rating 243 | 7 8 8 12 29 79 82 84 85 85 98 103 101 103 106 129 126 153 147 149 187 197 208 224 226 242 243 Average Rating 92 | 6 7 7 11 17 72 79 83 83 84 95 100 100 91 105 120 121 141 143 143 182 186 204 213 224 236 230 On Entrance 108 | . 7 8 8 12 29 79 80 84 85 85 98 100 100 103 106 125 126 147 142 149 186 188 208 224 225 235 Naked Turns . | . . . . . . . . . . . . . . . . . . . . . . . . . . . Heaviest Build 243 | 12 90 32 92 93 133 137 132 132 132 146 141 143 144 144 170 181 193 185 198 189 170 197 197 199 228 243 Greatest Support 265 | 40 40 40 40 40 20 20 20 20 20 20 20 20 20 20 20 20 20 20 20 240 240 230 230 235 240 265 Greatest Overweight (x) 9 | . 8 . 2 2 6 6 6 6 6 7 7 7 7 7 8 9 9 9 9 . 1 1 1 . 1 1 Average Overweight (x) 3 | . 1 . 1 1 5 6 6 5 6 6 6 6 5 7 7 8 8 8 9 . . . . . . . Largest Inventory Capacity 25 | 8 25 15 25 25 25 25 25 25 25 25 25 25 25 25 25 25 25 25 25 25 25 25 25 25 25 25 Average Capacity 24 | 7 18 15 24 24 25 25 25 25 25 25 25 25 25 25 25 25 25 25 25 25 25 25 25 25 25 25 Most Carried 25 | 4 16 15 24 25 25 25 25 25 25 25 25 25 25 25 25 25 25 25 25 25 25 25 25 25 25 25 Average Carried 22 | 2 12 13 21 23 23 24 24 24 24 23 24 25 24 24 24 24 24 24 24 22 24 24 24 24 24 23 Final Capacity 25 | 8 15 15 25 25 25 25 25 25 25 25 25 25 25 25 25 25 25 25 25 25 25 25 25 25 25 5 Final Carried 25 | 4 15 12 24 25 25 25 24 25 25 25 25 25 25 25 25 25 25 25 25 25 25 25 25 25 25 5 Class Distribution -------------------- 28% | Commander-Mutant 21% | Scrapper 10% | Mutant 10% | Scavenger-Tank 8% | Scavenger-Skirmisher 4% | Alien-Assassin 4% | Alien-Mutant 3% | Commander-Skirmisher 3% | Skirmisher 3% | Commander-Tank Dominant Class ---------------- Mutant | -10/Materials Mutant | -10/Subcaves Commander-Mutant | -8/Recycling Commander-Mutant | -8/Scraptown Scrapper | -6/Factory Scrapper | -6/Lower Caves Scrapper | -6/Lower Caves Scrapper | -6/Zion Scrapper | -5/Proximity Caves Skirmisher | -5/Factory Commander-Skirmisher | -5/Upper Caves Commander-Skirmisher | -5/Upper Caves Commander-Mutant | -5/Zhirov Scrapper | -4/Proximity Caves Skirmisher | -4/Factory Commander-Tank | -4/Extension Commander-Tank | -4/Cetus Scavenger-Tank | -4/Archives Scavenger-Tank | -4/Hub_04(d) Scavenger-Tank | -3/Research Scavenger-Skirmisher | -3/Testing Scavenger-Skirmisher | -2/Research Alien-Assassin | -2/Quarantine Alien-Mutant | -2/Section 7 Alien-Assassin | -1/Access Alien-Mutant | -1/Command Resources | -11 -10 -10 -8 -8 -6 -6 -6 -6 -5 -5 -5 -5 -5 -4 -4 -4 -4 -4 -4 -3 -3 -2 -2 -2 -1 -1 ----------- Run | Yrd Mat Sub Rec Scr Fac Low Low Zio Pro Fac Upp Upp Zhi Pro Fac Ext Cet Arc Hub Res Tes Res Qua Sec Acc Com Matter Collected 10415 | 322 592 . 426 120 334 626 76 45 24 674 198 28 80 143 628 1353 286 498 91 186 871 249 201 284 772 1308 Remotely 2434 | . . . . . . . . . . 250 . . . . 269 180 . . . . 346 . . . 403 986 Salvage Created 15557 | 239 759 43 160 . 428 436 56 . 14 603 436 68 404 125 686 1119 160 737 238 166 882 843 1353 1416 1206 2980 Parts 719 | 15 56 10 9 . 37 16 3 . 2 33 9 1 7 5 38 42 11 30 21 9 45 39 59 53 63 106 Haulers Intercepted 3 | . 1 . . . . . . . . . . . . . . . . . . . . 1 1 . . . Recyclers Shooed 6 | . 3 . . . . . . . . 1 . . . 1 . 1 . . . . . . . . . . Parts Field Recycled . | . . . . . . . . . . . . . . . . . . . . . . . . . . . Retrieved Matter . | . . . . . . . . . . . . . . . . . . . . . . . . . . . Parts Self-Destructed 72 | . . 7 . . . 3 3 . 40 . . 7 3 9 . . . . . . . . . . . . Prevented 14 | . . . . . . 7 . . . . . 4 3 . . . . . . . . . . . . . Kills | -11 -10 -10 -8 -8 -6 -6 -6 -6 -5 -5 -5 -5 -5 -4 -4 -4 -4 -4 -4 -3 -3 -2 -2 -2 -1 -1 ------- Run | Yrd Mat Sub Rec Scr Fac Low Low Zio Pro Fac Upp Upp Zhi Pro Fac Ext Cet Arc Hub Res Tes Res Qua Sec Acc Com Combat Hostiles Destroyed 194 | . 16 5 2 . 8 3 2 . 2 12 . 1 . 1 7 12 2 4 2 2 10 13 13 17 18 42 Melee 2 | . . . . . . . . . . . . . . . . . . . . . . . . . . 2 Guns 36 | . 9 . 2 . 5 1 . . 1 8 . 1 . 1 . . . . . . 8 . . . . . Cannons 71 | . . . . . . . 2 . 1 1 . . . . 5 11 1 4 2 1 1 6 5 10 14 7 AOE 40 | . 7 5 . . 3 1 . . . 3 . . . . . 1 . . . . . 3 . 1 . 16 Classes Destroyed 26 | 3 6 2 1 . 1 1 . . 1 1 2 . . . . . . . . . . . 2 . 1 5 Worker 13 | 1 3 . . . 4 . . . . . . . . . 1 . . . . . . . . . 2 2 Builder 10 | . 2 . . . 1 . . . . . . . . . 1 . . . 4 . . . 1 . 1 . Tunneler 9 | 7 1 . . . . . . . . . . . . . . 1 . . . . . . . . . . Hauler 3 | . 1 . . . . . . . . . . . . . . . . . . . . 1 1 . . . Recycler 12 | 1 2 . 1 . . . . . . 1 . . . . 1 3 . . . . 1 . . . . 2 Operator 15 | . 1 . . . . . . . . . . . . . 1 1 . 8 . . 1 . 1 . 1 1 Drone 2 | . . . . . . . . . 2 . . . . . . . . . . . . . . . . . Turret 2 | . . 2 . . . . . . . . . . . . . . . . . . . . . . . . Watcher 8 | . 2 . . . 1 . . . . . . . . . . 1 . . . . . . . . 2 2 Swarmer 40 | . 6 4 . . 2 . 2 . . . . . . . . 4 . . . . . 7 . . . 15 Cutter 6 | . . . . . . . . . . 3 . . . . . . . . . . . . . . 3 . Grunt 33 | . 10 . . . . . . . . 4 . 1 . . . 2 . . 2 . . . 3 . 4 7 Brawler 4 | . . . . . . . . . . . . . . . . . . . . . . . . . . 4 Duelist 2 | . . . . . . . . . . . . . . . . . . . . . . . 1 . . 1 Protector 2 | . . . . . . . . . . . . . . . . . . . . . . . . . . 2 Sentry 23 | . . . 2 . 1 1 . . . 1 . . . . 2 3 . 4 . . . 2 . 6 1 . Hunter 18 | . . . . . . 2 . . . . . . . . 2 1 . . . 2 2 . 4 2 3 . Programmer 49 | . . . . . 5 . . . . 4 . . . 1 3 2 . . . . 8 4 4 7 5 6 Heavy 1 | . . . . . . . . . . . . . . . . . . . . . . . . . . 1 Q-Series 2 | . . . . . . . . . . . . . . . . . . . . . . . . . 2 . Cetus Guard 2 | . . . . . . . . . . . . . . . . . 2 . . . . . . . . . S7 Guard 2 | . . . . . . . . . . . . . . . . . . . . . . . . 2 . . M Guard 2 | . . . . . . . . . . . . . . . . . . . . . . . . . . 2 Combat Programmer 2 | . . . . . . . . . . . . . . . . . . . . . . . . . . 2 Striker 1 | . . . . . . . . . . . . . . . . . . . . . . . . . . 1 Executioner 1 | . . . . . . . . . . . . . . . . . . . . . . . . . . 1 Fortress 1 | . . . . . . . . . . . . . . . . . . . . . . . 1 . . . Subdweller 1 | . . 1 . . . . . . . . . . . . . . . . . . . . . . . . Scrapoid 3 | . . . . . . . . . . . 1 . . . . 1 . 1 . . . . . . . . Packrat 5 | . . . . . . . . . . . 4 . . 1 . . . . . . . . . . . . Samaritan 1 | . . . . . . . . . . . 1 . . . . . . . . . . . . . . . Thug 1 | . . . . . . . . . . . . . . . . . . 1 . . . . . . . . Best Kill Streak 14 | 4 7 5 1 . 4 2 2 . 2 5 . 1 . 2 3 5 2 3 4 2 3 4 7 3 10 14 Combat Bots Only 12 | . 3 5 1 . 3 2 2 . 2 5 . 1 . 1 2 4 2 1 2 2 3 4 6 3 7 12 Max Kills in Single Turn 4 | 1 3 2 1 . 2 1 1 . 1 2 1 1 . 1 1 2 1 1 4 1 2 2 1 1 1 3 Gunslinging 1 | . . . . . . . . . . . . . . . . . . . . . 1 . . . . . Exploded 3 | . 3 2 . . 2 1 . . . 2 . . . . . 1 . . . . . 2 . 1 . 3 Melee 1 | . . . . . . . . . . . . . . . . . . . . . . . . . . 1 Uniques/NPCs Destroyed . | . . . . . . . . . . . . . . . . . . . . . . . . . . . Combat | -11 -10 -10 -8 -8 -6 -6 -6 -6 -5 -5 -5 -5 -5 -4 -4 -4 -4 -4 -4 -3 -3 -2 -2 -2 -1 -1 -------- Run | Yrd Mat Sub Rec Scr Fac Low Low Zio Pro Fac Upp Upp Zhi Pro Fac Ext Cet Arc Hub Res Tes Res Qua Sec Acc Com Hostile Shots Fired 1532 | . 58 57 8 . 30 36 3 . 2 59 . 1 . 7 71 65 29 11 104 24 97 72 78 89 163 468 Missed 383 | . 18 22 4 . 12 13 1 . 2 7 . . . 1 23 13 6 1 31 4 10 24 31 20 35 105 Hits 1149 | . 40 35 4 . 18 23 2 . . 52 . 1 . 6 48 52 23 10 73 20 87 48 47 69 128 363 Melee 23 | . . . . . . . . . . 3 . . . . . . . . 3 . . . . . 4 13 Projectile 1126 | . 40 35 4 . 18 23 2 . . 49 . 1 . 6 48 52 23 10 70 20 87 48 47 69 124 350 AOE 25 | . . . . . . . . . . 2 . . . 2 . . . . . . . . . . 2 19 Critical Strikes 73 | . . . . . . . 1 . . 2 . . . . 2 3 5 . 9 1 8 4 3 2 9 24 Actively Blocked 20 | . . . . . . . . . . . . . . . . . . . . . . . . . . 20 Part Disruptions 9 | . . . . . . . . . . . . . . . . . . . . . 1 1 1 1 1 4 Damage Taken 21373 | . 475 313 55 . 433 269 30 . . 1179 . 13 . 191 950 765 513 176 1016 280 1451 642 886 1619 1757 8360 Core 1875 | . 93 61 21 . . 20 . . . 80 . . . . 44 35 16 19 68 32 51 11 58 74 25 1167 Absorbed by Shields 6801 | . . . 3 . . 15 . . . 87 . 5 . . . 282 63 . 816 69 456 669 59 82 1424 2771 Reduced by Siege Mode 412 | . . . . . . . . . . . . . . . . . . . . . 126 9 21 12 83 161 Redirected to Shielding 4 | . . . 4 . . . . . . . . . . . . . . . . . . . . . . . Ignored by Resistances 1567 | . . . . . . . . . . . . . . . 165 . 154 80 . . 51 . 139 . 290 688 Regen/Repaired (Parts) 3206 | . 39 . . . 10 . . . . 61 . . . . . . . . . . . . 278 1126 958 734 Core Remaining (%) 76 | 100 . . . 30 . . . . 97 . . . . 92 . . . . 84 . 93 . . 90 . 25 Volleys Fired 1090 | 18 60 13 6 . 88 23 10 1 7 38 15 2 26 15 45 49 12 67 28 38 92 87 136 96 48 70 Largest 3 | 2 2 2 2 . 3 3 3 3 3 3 3 2 1 2 3 3 2 3 3 1 3 1 1 1 2 2 Hottest 240 | 60 60 60 40 . 155 120 152 152 152 150 94 90 94 98 182 168 112 147 189 120 105 120 120 120 120 240 Shots Fired 1536 | 36 114 20 12 . 129 35 15 3 13 69 21 3 26 20 72 149 13 89 32 37 141 89 134 96 79 89 Gun 413 | 36 105 6 12 . 52 11 4 2 6 45 9 2 . 10 11 . . 14 7 1 78 2 . . . . Cannon 1042 | . . . . . 75 17 11 1 7 20 12 1 26 10 51 149 9 75 25 36 63 83 134 93 75 69 Launcher 77 | . 9 14 . . 2 7 . . . 4 . . . . 10 . . . . . . 4 . 3 4 20 Special 4 | . . . . . . . . . . . . . . . . . 4 . . . . . . . . . Kinetic 701 | 18 90 6 12 . 52 11 4 2 6 43 9 2 . 10 34 149 2 50 9 . 78 2 . . 67 45 Thermal 565 | 18 15 . . . 75 17 11 1 7 22 1 1 . 10 12 . . 39 23 28 52 61 84 69 3 16 Explosive 34 | . 9 14 . . . . . . . 4 . . . . . . . . . . . . . . . 7 Electromagnetic 232 | . . . . . 2 7 . . . . 11 . 26 . 26 . 7 . . 9 11 26 50 27 9 21 Robot Hit Streak 24 | 8 9 5 7 . 4 14 3 . 2 9 4 4 16 4 6 5 5 7 3 2 8 9 5 14 22 24 Robot Miss Streak 9 | 1 5 2 1 . 2 2 . . 4 3 2 1 1 5 6 9 1 4 4 6 3 2 6 3 3 5 Penetration Max 1 | . . . . . . . . . . . . . . . 1 1 . 1 1 . 1 . . . 1 1 Secondary Targets 7 | . 1 . . . . . . . . 2 . 1 . . . . . . . . 3 . . . . . Max Gunslinging Chain 2 | . 1 . . . . . . . . 1 . 1 . . . . . . . . 2 . . . . . Capacitor 422 | . . . . . . . . . . . . . . . . . 7 5 . 37 63 83 134 93 . . Shots Hit Robots 725 | 27 66 6 10 . 30 18 2 . 2 37 12 1 24 4 24 68 10 41 5 3 59 36 46 60 57 77 Core Hits 472 | 10 40 16 5 . 20 14 2 . 2 28 5 1 17 3 15 29 3 20 10 3 21 22 18 26 41 101 Critical Kills 46 | . . . . . 3 . . . . . . . . . 5 17 . 8 2 . 2 . 2 1 4 2 Critical Parts Destroyed 53 | 1 . . . . 1 . . . . . . . . . 4 27 1 5 . . 8 . . . 2 4 Critical Strikes 124 | 1 . . . . 4 . . . . . . . . . 11 51 1 16 2 . 10 1 2 1 14 10 Meltdown 3 | . . . . . . . . . . . . . . . . . . . . . . . 2 1 . . Destroy 109 | 1 . . . . 4 . . . . . . . . . 11 51 1 16 2 . 10 . . . 6 7 Blast 11 | . . . . . . . . . . . . . . . . . . . . . . . . . 8 3 Corrupt 1 | . . . . . . . . . . . . . . . . . . . . . . 1 . . . . Melee Attacks 58 | . . . . . . . . . . . . . . . . . . . . . . . . 22 13 23 Kinetic 18 | . . . . . . . . . . . . . . . . . . . . . . . . 4 . 14 Impact . | . . . . . . . . . . . . . . . . . . . . . . . . . . . Slashing 40 | . . . . . . . . . . . . . . . . . . . . . . . . 18 13 9 Piercing . | . . . . . . . . . . . . . . . . . . . . . . . . . . . Sneak Attacks 4 | . . . . . . . . . . . . . . . . . . . . . . . . 2 1 1 Combat Hostiles 1 | . . . . . . . . . . . . . . . . . . . . . . . . 1 . . Follow-up Attacks . | . . . . . . . . . . . . . . . . . . . . . . . . . . . Damage Inflicted 33200 | 329 1466 421 156 . 1398 682 64 . 56 1569 515 24 361 97 1129 1404 257 1106 745 219 2126 2011 2143 2972 3067 8883 Guns 5290 | 329 902 26 129 . 626 139 . . 25 799 123 24 . 97 183 . . 112 71 . 1705 . . . . . Cannons 16426 | . . . . . 224 323 64 . 31 147 392 . 361 . 678 1325 257 994 71 219 395 1640 2143 2445 2364 2353 Explosions 9306 | . 517 395 . . 477 220 . . . 623 . . . . 268 79 . . 596 . . 371 . 247 502 5011 Melee 2000 | . . . . . . . . . . . . . . . . . . . . . . . . 280 201 1519 Ramming 178 | . 47 . 27 . 71 . . . . . . . . . . . . . 7 . 26 . . . . . Kinetic 11563 | 141 805 26 129 . 626 139 . . 25 776 123 24 . 97 405 1325 13 539 110 . 1705 . . 111 2132 2312 Thermal 7318 | 188 175 . . . 255 323 64 . 31 170 . . . . 136 79 . 567 32 . 66 1258 936 1890 86 1062 Explosive 4388 | . 439 395 . . 372 . . . . 623 . . . . . . . . . . . . . . . 2559 Electromagnetic 8612 | . . . . . 74 220 . . . . 392 . 361 . 588 . 244 . 596 219 329 753 1207 802 648 2179 Impact . | . . . . . . . . . . . . . . . . . . . . . . . . . . . Slashing 1141 | . . . . . . . . . . . . . . . . . . . . . . . . 169 201 771 Piercing . | . . . . . . . . . . . . . . . . . . . . . . . . . . . Highest Corruption 27 | . . . . . 3 3 3 3 . 2 2 2 2 11 2 5 5 5 11 . 27 15 15 2 . . Average Corruption 5 | . . . . . 2 3 3 3 . 1 2 2 2 9 2 2 5 4 3 . 16 12 7 2 . . Corruption Purged 5 | . . . . . . . . . . . . . . . . . . 5 . . . . . . . . Corruption Blocked . | . . . . . . . . . . . . . . . . . . . . . . . . . . . Effects 262 | . . . . . 24 17 12 1 . 2 6 6 3 20 5 20 14 13 2 . 44 37 17 19 . . Message Errors 67 | . . . . . 8 4 . . . 1 2 3 1 3 . 5 4 6 1 . 9 10 6 4 . . Matter Fused 49 | . . . . . 2 3 2 . . . 1 . . 7 3 5 5 1 1 . 8 5 2 4 . . Heat Flow Errors 31 | . . . . . 5 2 2 . . . . . . 1 1 1 1 1 . . 7 6 3 1 . . Energy Discharges 38 | . . . . . 3 . 3 1 . . 2 3 2 5 1 2 2 2 . . 5 3 2 2 . . Parts Rejected 2 | . . . . . . . . . . . . . . . . . 1 . . . . . 1 . . . Parts Fused 2 | . . . . . . . . . . . . . . . . . . 1 . . . 1 . . . . Data Loss (minor) 30 | . . . . . 3 . 3 . . 1 1 . . 1 . 3 1 1 . . 7 3 1 5 . . Data Loss (major) 12 | . . . . . 1 4 1 . . . . . . 3 . . . . . . 1 1 . 1 . . Misfires 15 | . . . . . . 4 1 . . . . . . . . 3 . 1 . . 1 4 . 1 . . Alerts 2 | . . . . . . . . . . . . . . . . . . . . . . 2 . . . . Weapon Failures 14 | . . . . . 2 . . . . . . . . . . 1 . . . . 6 2 2 1 . . Overload Shots . | . . . . . . . . . . . . . . . . . . . . . . . . . . . Overflow Damage 1940 | . 48 11 . . 35 75 . . . 50 108 . 13 . . 73 . 71 34 . . 265 81 229 215 632 Projectiles 1137 | . . . . . 31 75 . . . . 108 . 13 . . 19 . 71 . . . 265 81 185 130 159 Explosions 390 | . 48 11 . . 4 . . . . 50 . . . . . 54 . . 34 . . . . . 1 188 Melee 413 | . . . . . . . . . . . . . . . . . . . . . . . . 44 84 285 Knockbacks 48 | . 1 . . . . . . . . . . . . . 2 16 1 3 . . . . . . 15 10 Impact 1 | . 1 . . . . . . . . . . . . . . . . . . . . . . . . . Kinetic 42 | . . . . . . . . . . . . . . . 2 13 1 3 . . . . . . 14 9 Secondary 5 | . . . . . . . . . . . . . . . . 3 . . . . . . . . 1 1 Self-Inflicted Damage 901 | . 44 92 . . 105 . . . . 140 . . . . . . . . 106 . . . . 10 147 257 Shots 42 | . 2 3 . . 1 . . . . 3 . . . . . . . . 1 . . . . 1 16 15 Rammed 18 | 1 5 . 5 . 4 . . . . . . . . . . . . . 1 . 2 . . . . . Targets Rammed 21 | 1 7 . 6 . 4 . . . . . . . . . . . . . 1 . 2 . . . . . Kicked . | . . . . . . . . . . . . . . . . . . . . . . . . . . . Crushed 3 | . 2 . 1 . . . . . . . . . . . . . . . . . . . . . . . Highest Temperature 398 | . 42 16 2 . 398 278 199 110 288 372 148 36 252 256 198 213 224 234 60 199 218 170 153 100 . . Average Temperature 74 | . 21 16 2 . 95 59 68 57 101 94 55 14 74 60 68 45 96 55 18 77 86 23 95 100 . . Received Heat Transfer 1317 | . 204 174 18 . . 4 . . . 282 . 6 . 30 27 129 66 . 39 9 . . 36 58 150 85 Effects 3 | . . . . . 1 . . . . 1 . . . 1 . . . . . . . . . . . . Energy Bleed 3 | . . . . . 1 . . . . 1 . . . 1 . . . . . . . . . . . . Siege Activations 14 | . . . . . . . . . . . . . . . . . . . . . 2 2 1 2 4 3 Total Turns 226 | . . . . . . . . . . . . . . . . . . . . . 51 19 7 13 83 53 Longest Duration 33 | . . . . . . . . . . . . . . . . . . . . . 26 16 7 11 33 27 Martial Activations . | . . . . . . . . . . . . . . . . . . . . . . . . . . . Shielding Activations . | . . . . . . . . . . . . . . . . . . . . . . . . . . . Robots Disrupted 1 | . . . . . . . . . . . . . . . . . . . . . . . . 1 . . Combat Hostiles 1 | . . . . . . . . . . . . . . . . . . . . . . . . 1 . . Robots Corrupted 40 | . . . . . . 1 . . . . . . 2 . 2 . 1 . . 1 1 4 6 3 4 15 Combat Hostiles 38 | . . . . . . 1 . . . . . . 2 . 2 . 1 . . 1 1 4 6 3 4 13 Parts Fried 77 | . . . . . . 2 . . . . 4 . 1 . 4 1 1 . 3 2 3 5 12 8 4 27 Impact Corruptions . | . . . . . . . . . . . . . . . . . . . . . . . . . . . Robots Melted 3 | . . . . . . . . . . . . . . . . . . . . . . . 2 1 . . Combat Hostiles 3 | . . . . . . . . . . . . . . . . . . . . . . . 2 1 . . Parts Melted 27 | . . . . . 1 . . . . 3 . . . . . . . 3 . . 2 3 6 9 . . Heat Transferred 6924 | 425 250 . . . 350 500 100 . 50 250 . . . . 200 50 . 850 50 . 100 901 697 1419 74 658 Parts Sabotaged . | . . . . . . . . . . . . . . . . . . . . . . . . . . . Parts Stolen . | . . . . . . . . . . . . . . . . . . . . . . . . . . . Parts Stripped 78 | . . . . . . . . . . . . . . . . . . . . . . . . 16 . 62 Power Chain Reactions 7 | . . . . . 1 . . . . . . . . . 1 . . . . . . 1 . 1 . 3 Alert | -11 -10 -10 -8 -8 -6 -6 -6 -6 -5 -5 -5 -5 -5 -4 -4 -4 -4 -4 -4 -3 -3 -2 -2 -2 -1 -1 ------- Run | Yrd Mat Sub Rec Scr Fac Low Low Zio Pro Fac Upp Upp Zhi Pro Fac Ext Cet Arc Hub Res Tes Res Qua Sec Acc Com Maximum Alert Level 3 | . 1 . . . 2 . . . . 2 . . . . 1 2 1 . 1 . . . 1 2 2 3 Low Security (%) 70 | 100 73 . 100 . 95 . . . . . . . . . 95 32 . 100 79 100 100 100 74 65 . . Level 1 21 | . 26 . . . 4 . . . . 74 . . . . 4 64 100 . 20 . . . 25 29 66 1 Level 2 4 | . . . . . . . . . . 25 . . . . . 2 . . . . . . . 5 33 19 Level 3 3 | . . . . . . . . . . . . . . . . . . . . . . . . . . 78 Level 4 . | . . . . . . . . . . . . . . . . . . . . . . . . . . . Level 5 . | . . . . . . . . . . . . . . . . . . . . . . . . . . . High Security . | . . . . . . . . . . . . . . . . . . . . . . . . . . . Max Security . | . . . . . . . . . . . . . . . . . . . . . . . . . . . Peak Influence 1081 | 20 271 . 140 . 451 . . . . 435 . . . . 314 497 368 150 368 184 82 175 234 441 465 1081 Initial 300 | . 6 . 120 . . . . . . 300 . . . . . 154 276 99 . 184 . 24 68 101 260 272 Average 149 | 2 104 . 13 . 66 . . . . 347 . . . . 42 230 294 37 82 39 28 76 107 161 342 850 Influence Increases 10350 | 45 685 375 233 . 803 70 55 . 10 763 . 98 15 61 539 1227 337 284 534 82 417 475 535 722 673 1312 Destroy 0b10 Robot/C 4400 | . 320 120 60 . 160 60 40 . . 240 . 60 . 40 240 520 160 80 40 40 200 260 260 340 360 800 Destroy 0b10 Robot/NC 435 | 45 60 . 5 . 30 . . . 10 5 . . 15 5 25 45 10 45 20 . 10 5 15 . 30 55 Destroy Leader 786 | . 76 . . . 72 10 . . . 50 . 10 . 10 82 64 . . . 10 40 52 42 100 74 94 Allied During Kill 818 | . . . 10 . . . . . . 25 . 28 . 6 85 458 161 45 . . . . . . . . Successful Hack 203 | . 15 . 8 . 42 . . . . 26 . . . . 13 14 . . . . 7 8 5 . 44 21 Select Force Hacks 210 | . 60 . 150 . . . . . . . . . . . . . . . . . . . . . . . Disable Machine 990 | . 75 . . . 225 . . . . 45 . . . . 30 30 . 75 165 . 75 30 75 120 45 . Anti-Garrison Action 150 | . . . . . 150 . . . . . . . . . . . . . . . . . . . . . Destroy Structure 1458 | . 64 . . . 124 . . . . 72 . . . . 64 66 6 24 204 32 70 120 108 132 90 282 Advance Influence 300 | . . . . . . . . . . 300 . . . . . . . . . . . . . . . . Partial Spotted 15 | . . . . . . . . . . . . . . . . . . . . . 15 . . . . . Lose Combat Pursuer 585 | . 15 255 . . . . 15 . . . . . . . . 30 . 15 105 . . . 30 30 30 60 Influence Decreases 9432 | 35 484 335 484 . 352 519 50 7 10 372 391 98 15 61 223 1050 581 533 182 434 373 397 477 467 683 819 Entered New Map 1738 | . 4 102 131 . . 168 2 7 . . 146 . . . . 162 217 150 . 168 . 20 54 79 175 153 Time Decay 6639 | 35 480 203 353 . 352 351 48 . 10 362 245 98 15 25 187 498 254 283 182 266 353 377 390 378 478 416 Lost Part 386 | . . 30 . . . . . . . 10 . . . 10 6 10 10 . . . 20 . 20 10 10 250 Lost Ally 356 | . . . . . . . . . . . . . . 26 30 80 100 100 . . . . . . 20 . Purge Threat 313 | . . . . . . . . . . . . . . . . 300 . . . . . . 13 . . . Squads Dispatched 68 | . 5 . . . 9 . . . 1 5 . . . . 6 3 . . 3 6 5 4 6 3 7 5 Investigation 14 | . 3 . . . . . . . . 2 . . . . 1 2 . . . 5 . . . . 1 . Extermination 27 | . . . . . 4 . . . . 2 . . . . 2 . . . . . 4 3 3 2 4 3 Reinforcement 21 | . 2 . . . 2 . . . . 1 . . . . 3 1 . . 3 1 1 1 3 1 2 . Assault 5 | . . . . . 2 . . . 1 . . . . . . . . . . . . . . . . 2 Garrison 1 | . . . . . 1 . . . . . . . . . . . . . . . . . . . . . Intercept . | . . . . . . . . . . . . . . . . . . . . . . . . . . . Searches Triggered . | . . . . . . . . . . . . . . . . . . . . . . . . . . . Construction Impeded . | . . . . . . . . . . . . . . . . . . . . . . . . . . . Haulers Reinforced 2 | . . . . . . . . . . . . . . . . . . . 1 . . . 1 . . . Active Scanning Responses . | . . . . . . . . . . . . . . . . . . . . . . . . . . . Cargo Convoy Interrupts . | . . . . . . . . . . . . . . . . . . . . . . . . . . . Stealth | -11 -10 -10 -8 -8 -6 -6 -6 -6 -5 -5 -5 -5 -5 -4 -4 -4 -4 -4 -4 -3 -3 -2 -2 -2 -1 -1 --------- Run | Yrd Mat Sub Rec Scr Fac Low Low Zio Pro Fac Upp Upp Zhi Pro Fac Ext Cet Arc Hub Res Tes Res Qua Sec Acc Com Distress Signals 19 | . . . . . . . . . . 1 . . . . 2 3 2 . 1 8 . . 1 . . 1 Communications Jammed 103 | . . . . . . . . . . . . . . . . 56 . 1 1 . . 1 . 6 4 34 Distress Signals 103 | . . . . . . . . . . . . . . . . 56 . 1 1 . . 1 . 6 4 34 Times Spotted 364 | . 28 8 3 . 13 3 3 . 10 13 . 3 . 6 24 31 10 19 20 6 16 18 22 23 25 60 Peak Tracking Total 15 | . 3 4 1 . 3 2 3 . 7 7 . 3 . 4 9 7 5 1 15 5 3 5 6 3 4 10 Tactical Retreats 19 | . 1 3 . . . . 1 . . . . . . . . 2 . 1 3 . . . 1 2 2 3 Traps | -11 -10 -10 -8 -8 -6 -6 -6 -6 -5 -5 -5 -5 -5 -4 -4 -4 -4 -4 -4 -3 -3 -2 -2 -2 -1 -1 ------- Run | Yrd Mat Sub Rec Scr Fac Low Low Zio Pro Fac Upp Upp Zhi Pro Fac Ext Cet Arc Hub Res Tes Res Qua Sec Acc Com Traps Triggered 12 | . . . . . . . . . . . . . . . 2 1 . . . 1 1 2 . . 2 3 Indirectly 2 | . . . . . . . . . . . . . . . 1 . . . . . . . . . 1 . Trap Hack Attempts . | . . . . . . . . . . . . . . . . . . . . . . . . . . . Triggered . | . . . . . . . . . . . . . . . . . . . . . . . . . . . Disarmed 4 | . 4 . . . . . . . . . . . . . . . . . . . . . . . . . Reprogrammed . | . . . . . . . . . . . . . . . . . . . . . . . . . . . Reused . | . . . . . . . . . . . . . . . . . . . . . . . . . . . Traps Extracted . | . . . . . . . . . . . . . . . . . . . . . . . . . . . Installed . | . . . . . . . . . . . . . . . . . . . . . . . . . . . Triggered . | . . . . . . . . . . . . . . . . . . . . . . . . . . . Machines | -11 -10 -10 -8 -8 -6 -6 -6 -6 -5 -5 -5 -5 -5 -4 -4 -4 -4 -4 -4 -3 -3 -2 -2 -2 -1 -1 ---------- Run | Yrd Mat Sub Rec Scr Fac Low Low Zio Pro Fac Upp Upp Zhi Pro Fac Ext Cet Arc Hub Res Tes Res Qua Sec Acc Com Machines Disabled 78 | . 5 3 . . 16 1 . . . 3 . . 1 . 2 4 . 5 11 . 7 2 7 8 3 . Max in Single Turn 9 | . 2 2 . . 3 1 . . . 1 . . 1 . 2 1 . 1 9 . 1 1 1 1 1 . Garrison Access 1 | . . . . . 1 . . . . . . . . . . . . . . . . . . . . . Network Hub 1 | . . . . . . . . . . . . . . . . . . . 1 . . . . . . . Energy Cycler 1 | . . . . . . . . . . . . . . . . 1 . . . . . . . . . . Machines Repaired . | . . . . . . . . . . . . . . . . . . . . . . . . . . . Machines Dismantled . | . . . . . . . . . . . . . . . . . . . . . . . . . . . Machines Sabotaged . | . . . . . . . . . . . . . . . . . . . . . . . . . . . Overloaded Fab Kills . | . . . . . . . . . . . . . . . . . . . . . . . . . . . Hacking | -11 -10 -10 -8 -8 -6 -6 -6 -6 -5 -5 -5 -5 -5 -4 -4 -4 -4 -4 -4 -3 -3 -2 -2 -2 -1 -1 --------- Run | Yrd Mat Sub Rec Scr Fac Low Low Zio Pro Fac Upp Upp Zhi Pro Fac Ext Cet Arc Hub Res Tes Res Qua Sec Acc Com Machines Accessed 81 | . 9 . 11 2 9 . . . . 6 1 . 4 . 2 10 . . 1 2 3 4 4 2 8 3 Terminals 50 | . 6 . 6 . 4 . . . . 3 . . . . 1 8 . . 1 1 2 2 4 2 7 3 Fabricators 3 | . . . . . 1 . . . . 1 . . . . . . . . . . . 1 . . . . Repair Stations 3 | . 1 . . . 1 . . . . 1 . . . . . . . . . . . . . . . . Recycling Units 12 | . 2 . 5 . 1 . . . . 1 . . . . 1 2 . . . . . . . . . . Scanalyzers . | . . . . . . . . . . . . . . . . . . . . . . . . . . . Garrison Access 6 | . . . . . 2 . . . . . . . . . . . . . . 1 1 1 . . 1 . Total Hacks 179 | . 23 . 16 17 12 . . . . 13 1 . 17 . 5 16 . . 1 3 8 13 9 5 14 6 Successful 100 | . 14 . 13 17 5 . . . . 7 1 . 17 . 3 6 . . . . 4 3 3 . 5 2 Failed 79 | . 9 . 3 . 7 . . . . 6 . . . . 2 10 . . 1 3 4 10 6 5 9 4 Catastrophic 25 | . 1 . . . 5 . . . . 1 . . . . . 3 . . 1 2 . 4 1 2 3 2 Database Lockouts . | . . . . . . . . . . . . . . . . . . . . . . . . . . . Manual 79 | . 19 . 15 . 2 . . . . 7 . . . . 5 8 . . . 2 2 4 5 5 4 1 Terminals 105 | . 19 . 11 . 7 . . . . 4 . . . . 3 13 . . 1 2 7 5 9 5 13 6 Fabricators 11 | . . . . . 1 . . . . 4 . . . . . . . . . . . 6 . . . . Repair Stations 5 | . 2 . . . 1 . . . . 2 . . . . . . . . . . . . . . . . Recycling Units 16 | . 2 . 5 . 1 . . . . 3 . . . . 2 3 . . . . . . . . . . Scanalyzers . | . . . . . . . . . . . . . . . . . . . . . . . . . . . Garrison Access 7 | . . . . . 2 . . . . . . . . . . . . . . 1 1 2 . . 1 . Terminal Hacks 61 | . 4 . 1 17 3 . . . . 2 1 . 17 . 1 4 . . . . 3 1 2 . 3 2 Record 24 | . . . . 16 1 . . . . . . . 5 . . . . . . . . . . . . 2 Part Schematic 5 | . . . . . . . . . . . . . 4 . . 1 . . . . . . . . . . Robot Analysis 8 | . 3 . 1 . . . . . . . . . 4 . . . . . . . . . . . . . Prototype ID Bank 4 | . . . . . . . . . . . . . 4 . . . . . . . . . . . . . Open Door 4 | . . . . . . . . . . . 1 . . . . . . . . . . . . . 3 . Branch Access Points 3 | . . . . . . . . . . 1 . . . . 1 . . . . . . 1 . . . . Recycling Unit Index 2 | . . . . . 1 . . . . 1 . . . . . . . . . . . . . . . . Alert Level 3 | . . . . . . . . . . . . . . . . . . . . . 2 . 1 . . . Unreport Threat 3 | . . . . . . . . . . . . . . . . 2 . . . . . . 1 . . . Disarm Traps 1 | . 1 . . . . . . . . . . . . . . . . . . . . . . . . . Recall Investigation 1 | . . . . . . . . . . . . . . . . 1 . . . . . . . . . . Registered Components 1 | . . . . . . . . . . . . . . . . . . . . . 1 . . . . . Zone Layout 1 | . . . . . 1 . . . . . . . . . . . . . . . . . . . . . Proto ID Catalog 1 | . . . . 1 . . . . . . . . . . . . . . . . . . . . . . Fabricator Hacks 5 | . . . . . 1 . . . . 2 . . . . . . . . . . . 2 . . . . Network Status 3 | . . . . . 1 . . . . 1 . . . . . . . . . . . 1 . . . . Load Schematic 1 | . . . . . . . . . . . . . . . . . . . . . . 1 . . . . Build 1 | . . . . . . . . . . 1 . . . . . . . . . . . . . . . . Repair Station Hacks 2 | . 2 . . . . . . . . . . . . . . . . . . . . . . . . . Scan Component 1 | . 1 . . . . . . . . . . . . . . . . . . . . . . . . . Repair 1 | . 1 . . . . . . . . . . . . . . . . . . . . . . . . . Recycling Unit Hacks . | . . . . . . . . . . . . . . . . . . . . . . . . . . . Scanalyzer . | . . . . . . . . . . . . . . . . . . . . . . . . . . . Garrison Access Hacks . | . . . . . . . . . . . . . . . . . . . . . . . . . . . Unauthorized Hacks 32 | . 8 . 12 . 1 . . . . 3 . . . . 2 2 . . . . 1 . 1 . 2 . Terminals 20 | . 6 . 7 . 1 . . . . . . . . . 1 1 . . . . 1 . 1 . 2 . Botnet 9 | . 1 . 1 . 1 . . . . . . . . . 1 1 . . . . 1 . 1 . 2 . Skim 11 | . 5 . 6 . . . . . . . . . . . . . . . . . . . . . . . Fabricators 1 | . . . . . . . . . . 1 . . . . . . . . . . . . . . . . Prioritize 1 | . . . . . . . . . . 1 . . . . . . . . . . . . . . . . Repair Stations 1 | . . . . . . . . . . 1 . . . . . . . . . . . . . . . . Patch 1 | . . . . . . . . . . 1 . . . . . . . . . . . . . . . . Recycling Units 10 | . 2 . 5 . . . . . . 1 . . . . 1 1 . . . . . . . . . . Tunnel 7 | . 2 . 5 . . . . . . . . . . . . . . . . . . . . . . . Scrapoids 3 | . . . . . . . . . . 1 . . . . 1 1 . . . . . . . . . . Scanalyzers . | . . . . . . . . . . . . . . . . . . . . . . . . . . . Garrison Access . | . . . . . . . . . . . . . . . . . . . . . . . . . . . Data Cores Recovered 3 | . . . . . . . . . . . . . . . . . . . . . 1 . 1 . . 1 Used 1 | . . . . . . . . . . . . . . . . . . . . . . . 1 . . . Hacking Detections 48 | . 6 . 1 . 7 . . . . 3 . . . . 1 9 . . 1 2 2 3 3 2 5 3 Full Trace Events 4 | . 1 . 1 . . . . . . . . . . . . 1 . . . . . . . . 1 . Feedback Events 1 | . . . . . . . . . . . . . . . . 1 . . . . . . . . . . Corruption 1 | . . . . . . . . . . . . . . . . 1 . . . . . . . . . . Feedback Blocked . | . . . . . . . . . . . . . . . . . . . . . . . . . . . Robot Schematics Acquired . | . . . . . . . . . . . . . . . . . . . . . . . . . . . Robots Built . | . . . . . . . . . . . . . . . . . . . . . . . . . . . Authchips . | . . . . . . . . . . . . . . . . . . . . . . . . . . . Time . | . . . . . . . . . . . . . . . . . . . . . . . . . . . Total Robot Build Rating . | . . . . . . . . . . . . . . . . . . . . . . . . . . . Part Schematics Acquired 5 | . . . . . . . . . . . . . 4 . . 1 . . . . . . . . . . Parts Built 1 | . . . . . . . . . . 1 . . . . . . . . . . . . . . . . Authchips . | . . . . . . . . . . . . . . . . . . . . . . . . . . . Time 128 | . . . . . . . . . . 128 . . . . . . . . . . . . . . . . Total Part Build Rating 8 | . . . . . . . . . . 8 . . . . . . . . . . . . . . . . Parts Repaired 1 | . 1 . . . . . . . . . . . . . . . . . . . . . . . . . Time 26 | . 26 . . . . . . . . . . . . . . . . . . . . . . . . . Parts Recycled . | . . . . . . . . . . . . . . . . . . . . . . . . . . . Recycled Matter . | . . . . . . . . . . . . . . . . . . . . . . . . . . . Retrieved Matter . | . . . . . . . . . . . . . . . . . . . . . . . . . . . Retrieved Components . | . . . . . . . . . . . . . . . . . . . . . . . . . . . Parts Scanalyzed . | . . . . . . . . . . . . . . . . . . . . . . . . . . . Part Schematics Acquired . | . . . . . . . . . . . . . . . . . . . . . . . . . . . Parts Damaged . | . . . . . . . . . . . . . . . . . . . . . . . . . . . Bothacking | -11 -10 -10 -8 -8 -6 -6 -6 -6 -5 -5 -5 -5 -5 -4 -4 -4 -4 -4 -4 -3 -3 -2 -2 -2 -1 -1 ------------ Run | Yrd Mat Sub Rec Scr Fac Low Low Zio Pro Fac Upp Upp Zhi Pro Fac Ext Cet Arc Hub Res Tes Res Qua Sec Acc Com Used RIF Installer . | . . . . . . . . . . . . . . . . . . . . . . . . . . . Robots Hacked . | . . . . . . . . . . . . . . . . . . . . . . . . . . . Non-combat . | . . . . . . . . . . . . . . . . . . . . . . . . . . . Combat . | . . . . . . . . . . . . . . . . . . . . . . . . . . . Robot Hacks Applied . | . . . . . . . . . . . . . . . . . . . . . . . . . . . Relay Couplers Released 1 | . . . . . 1 . . . . . . . . . . . . . . . . . . . . . Machine Destruction 1 | . . . . . 1 . . . . . . . . . . . . . . . . . . . . . Fabnet Peak Effective % . | . . . . . . . . . . . . . . . . . . . . . . . . . . . Robots Rewired 15 | . . . 6 . . . . . 2 . . . . . . 7 . . . . . . . . . . Allies Hacked . | . . . . . . . . . . . . . . . . . . . . . . . . . . . Hacks Repelled . | . . . . . . . . . . . . . . . . . . . . . . . . . . . Allies | -11 -10 -10 -8 -8 -6 -6 -6 -6 -5 -5 -5 -5 -5 -4 -4 -4 -4 -4 -4 -3 -3 -2 -2 -2 -1 -1 -------- Run | Yrd Mat Sub Rec Scr Fac Low Low Zio Pro Fac Upp Upp Zhi Pro Fac Ext Cet Arc Hub Res Tes Res Qua Sec Acc Com Total Allies 33 | . . . 6 . . . . . 2 5 . . . . 5 15 . . . . . . . . . . Largest Group 15 | . . . 6 6 . . . . 2 5 5 4 4 4 5 15 13 7 . . . . . . . . Highest-Rated Group 682 | . . . 94 94 . . . . 59 235 235 188 188 188 238 682 588 312 . . . . . . . . Highest-Rated Ally 51 | . . . 27 27 . . . . 30 47 47 47 47 47 50 51 51 51 . . . . . . . . Total Orders 23 | . . . . 1 . . . . 1 . 2 . 1 . 3 2 2 1 . . . . . . 10 . STAY 7 | . . . . 1 . . . . 1 . 1 . 1 . . 1 1 1 . . . . . . . . FOLLOW 3 | . . . . . . . . . . . 1 . . . . 1 1 . . . . . . . . . EXPLORE 8 | . . . . . . . . . . . . . . . 2 . . . . . . . . . 6 . RETURN 5 | . . . . . . . . . . . . . . . 1 . . . . . . . . . 4 . Ally Attacks 316 | . . . 5 . . . . . . 13 . 10 . 13 55 125 77 18 . . . . . . . . Total Damage 6959 | . . . 27 . . . . . . 368 . 280 . 350 915 2491 1923 605 . . . . . . . . Kills 37 | . . . 1 . . . . . . . . 2 . 1 6 17 9 1 . . . . . . . . Allies Corrupted 1 | . . . . . . . . . . . . . . 1 . . . . . . . . . . . . Allies Melted 1 | . . . . . . . . . . . . . . . . 1 . . . . . . . . . . Intel | -11 -10 -10 -8 -8 -6 -6 -6 -6 -5 -5 -5 -5 -5 -4 -4 -4 -4 -4 -4 -3 -3 -2 -2 -2 -1 -1 ------- Run | Yrd Mat Sub Rec Scr Fac Low Low Zio Pro Fac Upp Upp Zhi Pro Fac Ext Cet Arc Hub Res Tes Res Qua Sec Acc Com Active Infowar (turns) 24867 | 102 2374 455 . . 2083 933 624 1678 1760 823 593 572 352 547 670 1339 496 1184 471 1228 1045 1247 1128 986 1237 940 Optics 2553 | . . . . . . . . . . . 410 572 352 547 670 2 . . . . . . . . . . Sensors 17394 | . . . . . 1057 921 624 1678 1760 792 591 566 349 547 599 1335 4 . 441 1228 1045 1247 1126 551 933 . IFF 1388 | . . . . . . . . . . . . . . . . . 362 996 30 . . . . . . . Terrain 5024 | . . . . . . . . . . . . . . . . . . . . 346 729 1247 1127 584 991 . Structural 11452 | . . . . . 1966 933 622 1678 1760 823 593 572 352 547 668 4 . 573 361 . . . . . . . Seismic 4223 | 102 2374 455 . . 1025 . . . . . . . . . . . . . . . . . . . 267 . Decoding 272 | . . . . . . . . . . 272 . . . . . . . . . . . . . . . . Jamming 8211 | . . . . . . . . . . . . . . . . 1336 493 1184 363 . . 1245 894 519 1237 940 Robot Analysis Total 8 | . 3 . 1 . . . . . . . . . 4 . . . . . . . . . . . . . Derelict Logs Recovered 6 | . . 1 . . . 1 . 1 . . 1 1 . 1 . . . . . . . . . . . . Drone Launches 6 | . . . . . . . . . . . . . . . 2 . . . . . . . . . 4 . Drone Recoveries 2 | . . . . . . . . . . . . . . . . . . . . . . . . . 2 . Decoded 0b10 Intel 6 | . . . . . . . . . . 6 . . . . . . . . . . . . . . . . Traps 4 | . . . . . . . . . . 4 . . . . . . . . . . . . . . . . Emergency Access 2 | . . . . . . . . . . 2 . . . . . . . . . . . . . . . . Exploration | -11 -10 -10 -8 -8 -6 -6 -6 -6 -5 -5 -5 -5 -5 -4 -4 -4 -4 -4 -4 -3 -3 -2 -2 -2 -1 -1 ------------- Run | Yrd Mat Sub Rec Scr Fac Low Low Zio Pro Fac Upp Upp Zhi Pro Fac Ext Cet Arc Hub Res Tes Res Qua Sec Acc Com Turns Passed 35391 | 231 2374 455 2668 7546 2086 962 624 1678 1760 823 593 572 352 547 670 1339 547 1184 471 1228 1045 1247 1161 986 1237 1005 Spaces Moved 16469 | 78 1016 261 826 2428 1390 589 394 1287 938 490 413 386 177 292 301 684 276 463 222 540 462 635 492 477 529 423 Core 151 | 8 . . . 141 . . . . . . . . . . . . . . . . . . . . . 2 Treads 7856 | 70 856 261 826 2287 . . . . . . . . . . . . . . . 540 462 635 492 477 529 421 Legs . | . . . . . . . . . . . . . . . . . . . . . . . . . . . Wheels 8462 | . 160 . . . 1390 589 394 1287 938 490 413 386 177 292 301 684 276 463 222 . . . . . . . Hover . | . . . . . . . . . . . . . . . . . . . . . . . . . . . Flight . | . . . . . . . . . . . . . . . . . . . . . . . . . . . Fastest Speed 50 | 50 160 160 160 50 120 130 130 120 130 130 130 130 120 140 140 150 150 150 160 160 155 155 155 146 146 50 Average Speed 179 | 148 207 160 312 307 127 130 130 129 130 135 130 130 124 140 147 150 158 158 160 160 164 155 155 146 170 159 Slowest Speed 330 | 160 320 160 320 330 130 130 130 130 130 140 140 140 140 140 150 160 160 160 160 160 232 240 232 155 263 252 Overloaded Moves . | . . . . . . . . . . . . . . . . . . . . . . . . . . . Propulsion Burnouts . | . . . . . . . . . . . . . . . . . . . . . . . . . . . Robots Hopped . | . . . . . . . . . . . . . . . . . . . . . . . . . . . Potential Cave-ins 15 | . . . . . . . . . . 3 . . . . . . . . . . . . 9 3 . . Cave-ins Triggered . | . . . . . . . . . . . . . . . . . . . . . . . . . . . Exploration Rate (%) 51 | 7 99 6 99 90 46 76 56 84 95 15 62 60 61 64 18 82 56 85 26 16 46 21 63 27 20 21 Regions Visited 26 Branch Regions 19 Pre-discovered Areas 18 | . 2 . 6 5 . 1 . . . . . . 3 1 . . . . . . . . . . . . Known Exits Taken 23 | . . . 1 1 1 1 1 1 1 1 1 1 1 1 1 1 1 1 1 1 1 1 1 1 1 . Unknown Exits Taken 3 | 1 1 1 . . . . . . . . . . . . . . . . . . . . . . . . Scrap Searched 28 | . . . . 9 . 4 2 2 4 . 2 2 . 3 . . . . . . . . . . . . Spaces Dug 328 | . 47 21 . . 37 4 5 . 3 8 1 1 . 5 7 . . 1 11 13 25 26 16 20 12 65 Terrain Destroyed 988 | . 68 53 . . 129 12 11 . 9 51 1 1 . 10 17 23 . 13 175 22 46 41 50 53 27 176 Melee 25 | . . . . . . . . . . . . . . . . . . . . . . . . 12 9 4 Projectile 381 | . . . . . 65 12 11 . 9 15 1 1 . 10 12 2 . 13 21 22 46 35 50 29 14 13 AOE 577 | . 68 53 . . 64 . . . . 36 . . . . 5 20 . . 154 . . 6 . 12 . 159 Terrain Rammed . | . . . . . . . . . . . . . . . . . . . . . . . . . . . Walls Destroyed . | . . . . . . . . . . . . . . . . . . . . . . . . . . . Machines Disabled . | . . . . . . . . . . . . . . . . . . . . . . . . . . . Actions | -11 -10 -10 -8 -8 -6 -6 -6 -6 -5 -5 -5 -5 -5 -4 -4 -4 -4 -4 -4 -3 -3 -2 -2 -2 -1 -1 --------- Run | Yrd Mat Sub Rec Scr Fac Low Low Zio Pro Fac Upp Upp Zhi Pro Fac Ext Cet Arc Hub Res Tes Res Qua Sec Acc Com Total 21124 | 154 1147 278 889 2529 1622 751 493 1294 1470 589 449 453 284 415 451 887 384 832 308 909 676 897 889 712 755 607 Wait 2450 | 45 26 . . 5 68 117 86 . 435 16 4 59 55 97 57 73 46 280 47 288 79 152 222 69 101 23 Move 16442 | 77 1015 260 825 2427 1389 588 393 1286 937 489 412 385 176 291 300 683 275 462 221 539 461 634 491 476 528 422 Hop . | . . . . . . . . . . . . . . . . . . . . . . . . . . . Pick Up 209 | 5 14 . 9 50 24 4 . 1 1 8 4 1 4 3 7 3 9 2 3 11 7 4 8 6 14 7 Fast Attach 78 | 7 1 . . 3 1 1 1 2 . 4 1 . 6 1 2 1 7 5 2 1 3 1 5 9 4 10 Attach 79 | . . 3 . 3 7 . 1 1 . 5 . . 1 1 3 2 4 2 . 11 2 2 3 5 10 13 Detach 24 | . . . . . . . . 1 . . . . 1 . . . 3 2 . 6 . . 3 . 1 7 Swap 249 | . 19 2 5 5 16 13 2 . . 18 7 2 4 1 27 9 11 5 2 6 21 9 10 17 18 20 Drop 232 | 1 5 . . 36 25 5 . 2 1 11 6 1 11 3 10 8 17 7 4 9 9 8 11 12 18 12 Fire 1090 | 18 60 13 6 . 88 23 10 1 7 38 15 2 26 15 45 49 12 67 28 38 92 87 136 96 48 70 Melee 58 | . . . . . . . . . . . . . . . . . . . . . . . . 22 13 23 Ram 5 | . . . . . 4 . . . . . . . . . . . . . 1 . . . . . . . Kick . | . . . . . . . . . . . . . . . . . . . . . . . . . . . Crush 16 | 1 7 . 6 . . . . . . . . . . . . . . . . . 2 . . . . . Escape Stasis . | . . . . . . . . . . . . . . . . . . . . . . . . . . . Rewire 191 | . . . 38 . . . . . 88 . . 3 . 3 . 59 . . . . . . . . . . Trap . | . . . . . . . . . . . . . . . . . . . . . . . . . . . Miscellaneous 1 | . . . . . . . . . 1 . . . . . . . . . . . . . . . . . Route ------- -11/Scrapyard -10/Materials (discovered 6 exits: [*Mat x3] / [*Min x2] / [*Sub]) -10/Subcaves -8/Recycling (discovered 2 exits: *Fac / *Scr) -8/Scraptown (discovered 2 exits: *Fac x2) -6/Factory (discovered 6 exits: *Fac x4 / *Low x2) -6/Lower Caves -6/Lower Caves (discovered 2 exits: *Fac / *Zio) -6/Zion (discovered 2 exits: Dee / *Pro) -5/Proximity Caves -5/Factory (discovered 3 exits: Fac / *Upp x2) -5/Upper Caves -5/Upper Caves (discovered 2 exits: Fac / *Zhi) -5/Zhirov -4/Proximity Caves -4/Factory (discovered 5 exits: Upp x2 / *Ext x2 / Arm) -4/Extension (discovered 3 exits: *Res x2 / *Cet) -4/Cetus (discovered 2 exits: *Res / *Arc) -4/Archives (discovered 3 exits: *Res / *Hub x2) -4/Hub_04(d) -3/Research -3/Testing -2/Research (discovered 4 exits: *Acc x2 / *Qua x2) -2/Quarantine (discovered 3 exits: *Acc / *Sec / [*Frg]) -2/Section 7 -1/Access -1/Command To Fleet Rendezvous History --------- Turn | Location | Event 8 | -11/Scrapyard | Discovered new exit (range 15) 232 | -11/Scrapyard | Entered Materials 305 | -10/Materials | Discovered new exit (range 6) 309 | -10/Materials | Build established: Mutant 329 | -10/Materials | Discovered new exit (range 5) 836 | -10/Materials | Discovered new exit (range 9) 883 | -10/Materials | Repaired Lgt. Treads 1513 | -10/Materials | Discovered new exit (range 8) 1769 | -10/Materials | Discovered new exit (range 9) 2598 | -10/Materials | Discovered new exit (range 7) 2606 | -10/Materials | Entered Subcaves 2608 | -10/Subcaves | Learned Materials security intel 2631 | -10/Subcaves | A swath of the cavern ceiling suddenly collapsed 2867 | -10/Subcaves | Ambushed by Subdweller buried in earth 2877 | -10/Subcaves | Discovered new exit (range 11) 2880 | -10/Subcaves | Core integrity fell below 50% 2932 | -10/Subcaves | Lost 3 parts (1n2w) 3061 | -10/Subcaves | Entered Recycling 3931 | -8/Recycling | Discovered new exit (range 16) 3959 | -8/Recycling | Build established: Commander-Mutant 4975 | -8/Recycling | Learned Factory security intel 5012 | -8/Recycling | Identified exit to Scraptown 5040 | -8/Recycling | Learned Factory trap positions 5057 | -8/Recycling | Learned location of 1 exit from Extension 5106 | -8/Recycling | Learned Storage trap positions 5146 | -8/Recycling | Learned Storage emergency access door positions 5646 | -8/Recycling | Scanned before Scraplab entrance 5694 | -8/Recycling | Entered Scraplab 5729 | -8/Recycling | Entered Scraptown 5729 | -8/Scraptown | Accompanied by 6 allies 5730 | -8/Scraptown | Identified exit to Factory 6043 | -8/Scraptown | Heard Great Nut preacher, LISTEN AND RECITE! 6520 | -8/Scraptown | Visited UFD Registry 6520 | -8/Scraptown | Registered with UFD as "Steamcase" 6590 | -8/Scraptown | Visited Science Guys 6712 | -8/Scraptown | Visited Scrapoid Research Area 6779 | -8/Scraptown | Visited A0-MCA Data Center 6801 | -8/Scraptown | Given a B- rating by A0-MCA 6808 | -8/Scraptown | Found A0-MCA's Component Scanner 6870 | -8/Scraptown | Visited Junk Repository 6927 | -8/Scraptown | Visited Derelict Rescue Squad 6969 | -8/Scraptown | Found DRS Beacon 7031 | -8/Scraptown | Visited Observation Area 7114 | -8/Scraptown | Visited Modified Component R&D 7268 | -8/Scraptown | Visited Research Penetration Think Tank 7351 | -8/Scraptown | Visited Curators Association 7412 | -8/Scraptown | Visited Cartography Club 7630 | -8/Scraptown | Visited SPCMW 7732 | -8/Scraptown | Visited Supply Room 7774 | -8/Scraptown | Visited Bundlers 9682 | -8/Scraptown | Found Surveybot 17 Chip 9706 | -8/Scraptown | Found Deep Structural Scanner 9712 | -8/Scraptown | Learned location of Lower Caves (-7) 9712 | -8/Scraptown | Learned location of Hub_04(d) (-4) 9712 | -8/Scraptown | Learned 8 Materials zone layouts 9712 | -8/Scraptown | Learned 8 Access zone layouts 9712 | -8/Scraptown | Learned 4 Recycling zone layouts 9712 | -8/Scraptown | Learned 12 Upper Caves zone layouts 9712 | -8/Scraptown | Learned 8 Proximity Caves zone layouts 9712 | -8/Scraptown | Learned location of 2 exits from Factory 9712 | -8/Scraptown | Learned location of 2 exits from Upper Caves 9712 | -8/Scraptown | Learned location of 2 exits from Proximity Caves 10415 | -8/Scraptown | Visited Fellowship of the Rings 10511 | -8/Scraptown | Visited Comm Corps 11936 | -8/Scraptown | Found Scrap Suit 12828 | -8/Scraptown | Visited The Evicted 13275 | -8/Scraptown | Entered Factory 13275 | -6/Factory | Evolved 8 slots: Power x1, Propulsion x2, Utility x4, Weapon x1 13276 | -6/Factory | Identified exit to Factory 13277 | -6/Factory | Loaded intel: 97 trap records 13337 | -6/Factory | Discovered exit to Factory (range 9) 13571 | -6/Factory | Discovered exit to Factory (range 16) 13572 | -6/Factory | Build established: Scrapper 14334 | -6/Factory | Discovered new exit (range 8) 14599 | -6/Factory | Discovered new exit (range 5) 15257 | -6/Factory | Garrison activated, responded to threat 15359 | -6/Factory | Identified exit to Lower Caves 15361 | -6/Factory | Entered Lower Caves 16079 | -6/Lower Caves | Discovered new exit (range 14) 16253 | -6/Lower Caves | Attracted the attention of an 0b10 checkpoint 16321 | -6/Lower Caves | Identified exit to Lower Caves 16323 | -6/Lower Caves | Entered another Lower Caves area 16324 | -6/Lower Caves | Encountered a Warlord checkpoint 16357 | -6/Lower Caves | Discovered exit to Factory (range 6) 16375 | -6/Lower Caves | Found Alien Artifact 16375 | -6/Lower Caves | Identified Core Expander 16375 | -6/Lower Caves | Installed Core Expander, added new Propulsion slot 16737 | -6/Lower Caves | Discovered new exit (range 15) 16778 | -6/Lower Caves | Identified exit to Zion 16947 | -6/Lower Caves | Entered Zion 16948 | -6/Zion | Identified exit to Proximity Caves 16993 | -6/Zion | System corruption cleaned by Quarantine Array 17089 | -6/Zion | Given A8's code to call for help 17234 | -6/Zion | Identified exit to Deep Caves 17455 | -6/Zion | Learned 4 Factory zone layouts 17709 | -6/Zion | Received a visual enhancement algorithm 18625 | -6/Zion | Entered Proximity Caves 18627 | -5/Proximity Caves | Spotter reported a threat 18628 | -5/Proximity Caves | Spotter reported a threat 18634 | -5/Proximity Caves | Activated DRS Beacon 18941 | -5/Proximity Caves | Received a Behemoth hack from an annoying Tinkerer 19858 | -5/Proximity Caves | Attracted the attention of an 0b10 outpost 20385 | -5/Proximity Caves | Entered Factory 20385 | -5/Factory | Evolved 2 slots: Utility x2 20386 | -5/Factory | Identified exit to Factory 20443 | -5/Factory | Identified exit to Upper Caves 20512 | -5/Factory | Fabricated Com. HERF Cannon? 20713 | -5/Factory | Build established: Skirmisher 21148 | -5/Factory | Scrapoid reinforcements arrived 21208 | -5/Factory | Entered Upper Caves 21208 | -5/Upper Caves | Accompanied by 5 allies 21209 | -5/Upper Caves | Identified exit to Upper Caves 21248 | -5/Upper Caves | Found Scrap Suit 21450 | -5/Upper Caves | Build established: Commander-Skirmisher 21553 | -5/Upper Caves | Learned Factory stockpile data 21737 | -5/Upper Caves | Entered a destroyed Warlord outpost 21801 | -5/Upper Caves | Entered another Upper Caves area 21801 | -5/Upper Caves | Accompanied by 4 allies 21875 | -5/Upper Caves | Learned Factory stockpile data 22166 | -5/Upper Caves | Discovered new exit (range 26) 22367 | -5/Upper Caves | Identified exit to Zhirov 22373 | -5/Upper Caves | Entered Zhirov 22373 | -5/Zhirov | Accompanied by 4 allies 22374 | -5/Zhirov | Identified exit to Proximity Caves 22398 | -5/Zhirov | Met Zhirov 22425 | -5/Zhirov | Learned location of Quarantine (-2) 22425 | -5/Zhirov | Learned location of Command (-1) 22432 | -5/Zhirov | Zhirov requested help retrieving the SGEMP Prototype 22452 | -5/Zhirov | Found Alien Artifact 22452 | -5/Zhirov | Identified Integrated Reactor 22452 | -5/Zhirov | Installed Integrated Reactor, increased core energy generation (+10) 22470 | -5/Zhirov | Found Alien Artifact 22671 | -5/Zhirov | Build established: Commander-Mutant 22725 | -5/Zhirov | Entered Proximity Caves 22725 | -4/Proximity Caves | Accompanied by 4 allies 22757 | -4/Proximity Caves | P-70 Sage assimilated allied 05F02-D 22790 | -4/Proximity Caves | System corruption reached 10% 22795 | -4/Proximity Caves | Lost 3 allies 23039 | -4/Proximity Caves | Learned location of Armory (-4) 23096 | -4/Proximity Caves | Build established: Scrapper 23272 | -4/Proximity Caves | Entered Factory 23272 | -4/Factory | Evolved 2 slots: Power x1, Utility x1 23552 | -4/Factory | Identified exit to Upper Caves 23552 | -4/Factory | Identified exit to Extension 23552 | -4/Factory | Identified exit to Armory 23684 | -4/Factory | Build established: Skirmisher 23863 | -4/Factory | Scrapoid reinforcements arrived 23942 | -4/Factory | Entered Extension 23942 | -4/Extension | Accompanied by 4 allies 23943 | -4/Extension | Identified exit to Research 24093 | -4/Extension | Energy Cycler disabled 24093 | -4/Extension | Rescued a captive Derelict 24093 | -4/Extension | Rescued a captive Derelict 24093 | -4/Extension | Rescued a captive Derelict 24093 | -4/Extension | Rescued a captive Derelict 24094 | -4/Extension | Rescued a captive Derelict 24095 | -4/Extension | Rescued a captive Derelict 24101 | -4/Extension | Rescued a captive Derelict 24108 | -4/Extension | Rescued a captive Derelict 24115 | -4/Extension | Found Quantum Capacitor 24211 | -4/Extension | Build established: Scavenger-Tank 24274 | -4/Extension | Spotted B-86 Titan 24288 | -4/Extension | Extracted ID and sensor layout for unrecognized location from A7's data core 24289 | -4/Extension | Allies destroyed B-86 Titan 24290 | -4/Extension | Spotted B-86 Titan 24302 | -4/Extension | Allies destroyed B-86 Titan 24309 | -4/Extension | Discovered exit to Research (range 15) 24486 | -4/Extension | Scrapoids reinforcements arrived? 24772 | -4/Extension | Build established: Commander-Tank 25208 | -4/Extension | Discovered new exit (range 6) 25222 | -4/Extension | Disrupted transfer network 25248 | -4/Extension | Identified exit to Cetus 25281 | -4/Extension | Entered Cetus 25281 | -4/Cetus | Accompanied by 13 allies 25318 | -4/Cetus | Spotted Cetus Guard 25318 | -4/Cetus | Spotted Cetus Guard 25319 | -4/Cetus | Spotted Cetus Guard 25320 | -4/Cetus | Spotted Cetus Guard 25326 | -4/Cetus | Allies destroyed Cetus Guard 25330 | -4/Cetus | Allies destroyed Cetus Guard 25336 | -4/Cetus | Allies destroyed Cetus Guard 25339 | -4/Cetus | Allies destroyed Cetus Guard 25368 | -4/Cetus | Lost 3 allies 25430 | -4/Cetus | Found Scrap Suit 25576 | -4/Cetus | Discovered new exit (range 15) 25614 | -4/Cetus | Spotted Cetus Guard 25614 | -4/Cetus | Spotted Cetus Guard 25616 | -4/Cetus | Spotted Cetus Guard 25617 | -4/Cetus | Spotted Cetus Guard 25629 | -4/Cetus | Destroyed Cetus Guard 25640 | -4/Cetus | Destroyed Cetus Guard 25640 | -4/Cetus | Allies destroyed Cetus Guard 25644 | -4/Cetus | Allies destroyed Cetus Guard 25666 | -4/Cetus | Discovered exit to Research (range 15) 25673 | -4/Cetus | Lost 3 allies 25674 | -4/Cetus | Met Revision 17 25756 | -4/Cetus | Identified exit to Archives 25828 | -4/Cetus | Entered Archives 25828 | -4/Archives | Accompanied by 7 allies 25894 | -4/Archives | Build established: Scavenger-Tank 26199 | -4/Archives | Lost 5 allies 26247 | -4/Archives | Discovered new exit (range 15) 26477 | -4/Archives | Discovered exit to Research (range 17) 26581 | -4/Archives | Discovered new exit (range 18) 27009 | -4/Archives | Identified exit to Hub_04(d) 27012 | -4/Archives | Entered Hub_04(d) 27236 | -4/Hub_04(d) | Discovered exit to Research (range 18) 27385 | -4/Hub_04(d) | Network Hub disabled 27422 | -4/Hub_04(d) | Spotted Lightning 27440 | -4/Hub_04(d) | Spotted Lightning 27441 | -4/Hub_04(d) | Spotted Lightning 27482 | -4/Hub_04(d) | System corruption reached 10% 27483 | -4/Hub_04(d) | Entered Research 27483 | -3/Research | Evolved 2 slots: Propulsion x1, Utility x1 27484 | -3/Research | Identified exit to Testing 27683 | -3/Research | Revision forces began assault on 0b10 27769 | -3/Research | Met up with Revision 17++ 27784 | -3/Research | Build established: Scavenger-Skirmisher 28051 | -3/Research | Found Exp. Signal Interpreter 28129 | -3/Research | Build established: Scavenger-Tank 28183 | -3/Research | Research terminal network offline 28253 | -3/Research | Spotted Striker 28357 | -3/Research | Found Fusion Bomb Launcher 28711 | -3/Research | Spotted Striker 28711 | -3/Research | Entered Testing 28752 | -3/Testing | Found 2N-1CE's Frost Array 28805 | -3/Testing | Found Perforator 28813 | -3/Testing | Discovered new exit (range 22) 29032 | -3/Testing | Build established: Scavenger-Skirmisher 29125 | -3/Testing | Found Disintegrator 29287 | -3/Testing | System corruption reached 10% 29755 | -3/Testing | Identified exit to Research 29756 | -3/Testing | Entered Research 29756 | -2/Research | Evolved 2 slots: Utility x2 29987 | -2/Research | Found Gamma Bomb Array 30004 | -2/Research | Discovered new exit (range 22) 30045 | -2/Research | Identified exit to Access 30139 | -2/Research | System corruption reached 10% 30305 | -2/Research | Found Quantum Capacitor 30455 | -2/Research | Discovered exit to Access (range 24) 30757 | -2/Research | Identified exit to Quarantine 31003 | -2/Research | Entered Quarantine 31274 | -2/Quarantine | Found Alien Artifact 31274 | -2/Quarantine | Identified Core Reset Matrix 31274 | -2/Quarantine | Identified Transdimensional Reconstructor 31274 | -2/Quarantine | Used Core Reset Matrix 31278 | -2/Quarantine | Detected hypermatrix surge 31278 | -2/Quarantine | Sensed 12 artifacts in vicinity 31360 | -2/Quarantine | Discovered exit to Access (range 23) 31557 | -2/Quarantine | Found Sigix Broadsword 31641 | -2/Quarantine | Found Subatomic Replicator 31766 | -2/Quarantine | Found Core Stripper 31862 | -2/Quarantine | Build established: Alien-Assassin 31901 | -2/Quarantine | Spotted Fortress 31914 | -2/Quarantine | Destroyed Fortress 31928 | -2/Quarantine | Found Centrium Heavy Armor Plating 31941 | -2/Quarantine | Found Thermal Barrier 32021 | -2/Quarantine | Discovered new exit (range 24) 32027 | -2/Quarantine | Discovered new exit (range 21) 32056 | -2/Quarantine | Identified exit to Section 7 32164 | -2/Quarantine | Entered Section 7 32165 | -2/Section 7 | Detected hypermatrix surge 32165 | -2/Section 7 | Sensed 20 artifacts in vicinity 32179 | -2/Section 7 | Spotted S7 Guard 32189 | -2/Section 7 | Destroyed S7 Guard 32193 | -2/Section 7 | Found Hvy. Regenerative Plating 32212 | -2/Section 7 | Found Core Membrane 32212 | -2/Section 7 | Installed Core Membrane, gained immunity to corruption 32504 | -2/Section 7 | Found Integrated Mediator 32504 | -2/Section 7 | Installed Integrated Mediator, increased core attachment efficiency 32759 | -2/Section 7 | Scanned by Researcher 32783 | -2/Section 7 | Found Integrated Dissipator 32783 | -2/Section 7 | Installed Integrated Dissipator, increased core heat dissipation (+20) 32926 | -2/Section 7 | Build established: Alien-Mutant 32962 | -2/Section 7 | Spotted S7 Guard 32967 | -2/Section 7 | Destroyed S7 Guard 32975 | -2/Section 7 | Discovered exit to Access (range 21) 32986 | -2/Section 7 | Found Integrated Thermoelectric Network 32986 | -2/Section 7 | Installed Integrated Thermoelectric Network, gained heat-energy exchange potential 33020 | -2/Section 7 | Found Ragnarok Missile Launcher 33150 | -2/Section 7 | Entered Access 33150 | -1/Access | Evolved 2 slots: Power x1, Weapon x1 33784 | -1/Access | Destroyed 7 combat bots 34111 | -1/Access | Build established: Alien-Assassin 34274 | -1/Access | Discovered new exit (range 21) 34379 | -1/Access | Identified exit to Command 34387 | -1/Access | Entered Command 34452 | -1/Command | Destroyed 12 combat bots 34689 | -1/Command | Build established: Alien-Mutant 34782 | -1/Command | Spotted M Guard 34789 | -1/Command | Spotted Combat Programmer 34799 | -1/Command | Spotted Combat Programmer 34810 | -1/Command | Destroyed Combat Programmer 34813 | -1/Command | Spotted M Guard 34829 | -1/Command | Destroyed M Guard 34836 | -1/Command | Destroyed Combat Programmer 34844 | -1/Command | Destroyed M Guard 34844 | -1/Command | All MAIN.C guards destroyed 34848 | -1/Command | Found Prototype Processor 34848 | -1/Command | Identified Exp. Targeting Computer 34851 | -1/Command | Found Prototype Device 34851 | -1/Command | Identified AEGIS Remote Shield 34855 | -1/Command | Found Prototype Reactor 34855 | -1/Command | Identified Zero-point Reactor 34858 | -1/Command | Found Zero-point Reactor 34874 | -1/Command | Lost 8 parts (2p3u3w) 34887 | -1/Command | First assault squad dispatched 34892 | -1/Command | Found Prototype Launcher 34892 | -1/Command | Identified Hellfire Missile Launcher 34898 | -1/Command | Found Thermal Barrier 35004 | -1/Command | Destroyed 10 combat bots 35202 | -1/Command | Build established: Generator-Mutant 35344 | -1/Command | Spotted Striker 35344 | -1/Command | Spotted Alpha 7 35347 | -1/Command | Spotted Executioner 35350 | -1/Command | Spotted Executioner 35350 | -1/Command | Spotted Executioner 35350 | -1/Command | Spotted Executioner 35350 | -1/Command | Spotted Striker 35350 | -1/Command | Spotted Alpha 7 35362 | -1/Command | Spotted B-99 Colossus 35366 | -1/Command | Spotted B-99 Colossus 35373 | -1/Command | Discovered new exit (range 7) 35385 | -1/Command | Core integrity fell below 50% 35386 | -1/Command | Destroyed Striker 35386 | -1/Command | Destroyed Executioner 35392 | -1/Command | Released all parts (5) 35392 | *** | Heading to fleet! Last Messages --------------- 35390_ Slug penetrates Wall. 35390_ Penetrated by Slug. 35390_ Graphene Brace destroyed. 35390_ Slug penetrates Wall. 35391_ Penetrated by Slug. 35391_ Slug penetrates Wall. 35392_ Perforator destroyed. 35392_ Knocked back. 35392_ Penetrated by Slug. 35392_ Slug penetrates Reinforced Barrier. 35392_ Penetrated by Slug. 35392_ Released Exp. Targeting Computer. 35392_ Released 2N-1CE's Frost Array. 35392_ Released Huge Storage Unit. 35392_ Released Surveybot 17 Chip. 35392_ Released Adv. Targeting Computer. 35392_ Penetrated by Slug. 35392_ Core Membrane filtered system corruption (1). 35392_ Slug penetrates Alpha 7. Map ----- +----------------------------------------------------+ | ?????????????????????# !// # ###### | | ????????? ??????????# %// # #????# | | ????????? ??????????# # #????# [ | | ?????????# ?########## #+#####+#????# % | | ???#?????# ?# ## # #???# #????# ! | | ???# ????# # ] #? # #???# #????# | | ???# ???# # #??? ??# #???# #????# % | | ???# #### # #???##/##### #####+##???# = | | ???# # ##### / ##### | | ???# # ! + # + | | ???# # ##### # # | | ??## # #???# / # | | ??# ##+########## ####### ! + | | ??# #?????# = ####### | | ??# ! #?????########?????# | | ??# ###########??????????????????# | | ?######### !!! #????????????????????????????# | | ?# ??# !!! #????????????????????????????# | | ?# ??# !!! #?##############?????????????# | | ?# ?# #?# BB#?????????????# | | ?# ?# ### BB#########?????# | | ?# = # ##; ; # # # ###?### % | | ?# # #?# ^ ^^ ^ ^^ ###"" | | ?# + ### ^ ^ ^ + % | | ?# # ##; "% %7EE ^^ ^%^+ | | ?# ## ##?# ]]@%= % 7 ^^ %+ | | ?# ??# #?## ]!!!%*!%%E^^^ ^^ + | | ?# ??# #?#; ]!%!!!! ! ^^ ^######## | | ?######???# #?## ]%!%]] ; # # # ###??????# | | ??????????# #??# !*!! BB#;#######????????# | | ??????????# #??# BB###??????????????# | | ??????????# #??##;;##########????????????????# | | ??????????# #???###??????????????????????????# | | ??????????# ###########??????????????????????# | | ??????????# # """ #??????????????????????# | | ??????????# ! # ""T"" #?????????????######???? | | ??????????# # "" "" #????????????? ???? | | ??????????# + #????????????? ????? | | ??????????# # #????????????# ""???? | | ??????????# # ] #????????????# """???? | | ??????????# # #????????????# """"??? | | ??????????# # ! ###????????### "" ??? | | ??????????# ########### ########## # ???? | | ??????????# #??????### ## # ?????? | | ??????????# #??????# # # # ##??????? | | ??????????# ######## ### # # # # ######## | | ??????????# = | | ####??????# = ! | | !*#??????# ######## ## ## # ##"#^^### | | *[ ######## #??????## ### ## ##"^^#?? | +----------------------------------------------------+ Best States ------------- Heat Dissipation 172 Coolant Potential 180 Energy Generation 111 Energy Capacity 1600 Matter Stores 300 Matter Capacity 300 Sight Range 22 Robot Scan Range 16 Terrain Scan Range 24 Terrain Scan Density 1210 Jamming Range 16 Armor Coverage 1200 Resistance: KI 30 Resistance: TH 50 Resistance: EM 25 Core Shielding 20 Evasion (%) 50 Targeting Accuracy 20 Core Analysis 6 Armor Integrity Analysis 40 Recoil Reduction 6 Kinecelleration 40 Offensive Hacking 12 Item Schematics ----------------- None Robot Schematics ------------------ None Fabricated ------------ Com. HERF Cannon | x1 | -5/Factory | Preloaded Repaired ---------- Lgt. Treads | 72% | -10/Materials Alien Tech Used ----------------- Core Expander Integrated Reactor Core Reset Matrix Sigix Broadsword Core Stripper Core Membrane Integrated Mediator Integrated Dissipator Integrated Thermoelectric Network Achievements -------------- None Challenges ------------ None Game ------ Seed ChainSmallTerminator Manual? 0 Play Time 04:18:39 Cumulative 199.8 hours Start 2025.09.11 @ 17:26:17 End 2025.09.13 @ 15:39:32 Sessions 21 Manual Loads 0 Difficulty Rogue Special Mode None Game No. 109 Rogue 109 Adventurer 0 Explorer 0 Win Type 2 Total 23 Types 10/1/8/1/0/1/1/1/0/0 Lore% 74 Gallery% 65 Achievement% 71 Wizard Run 0 Options --------- Layout 1 ASCII 0 Keyboard 0 Movement Arrows Keybinds 0 Fullscreen 2 Font 24/Tamsyn Map View 50x35 Zoom Use 0% Tactical HUD 1 Map Filters NONE Filters NONE Steam 1 RUN: 91a61d49-fd99-46d6-9675-b3ac4d8f2d76